Workbook

Sheet Input Data
A1: Unused | B1: Project Evaluation Toolkit - Multiobjective Project Ranking | K1: Legend
A2: Benefit | K2: User Inputs
A3: Cost | B3: Steps: | K3: Key Outputs
B4: 1. Enter evaluation categories along top row, indicating which metrics are "benefits" and which are "costs" from the drop-down menu
B5: 2. Enter data for each project
B6: 3. Click "Rank projects" button
B7: 4. Upon completion of project ranking, you will be moved to the Ranking sheet.
D8: mobility | E8: crash | F8: emiss | G8: cost | H8: maint
B9: Project | C9: Name | D9: Metric 1 | E9: Metric 2 | F9: Metric 3 | G9: Metric 4 | H9: Metric 5 | I9: Metric 6 | J9: Metric 7 | K9: Metric 8 | L9: Metric 9 | M9: Metric 10
D10: 2 | E10: 2 | F10: 2 | G10: 3 | H10: 3 | I10: 1 | J10: 1 | K10: 1 | L10: 1 | M10: 1
B11: 1
B12: 2
B13: 3
B14: 4
B15: 5
B16: 6
B17: 7
B18: 8
B19: 9
B20: 10
B21: 11
B22: 12
B23: 13
B24: 14
B25: 15
B26: 16
B27: 17
B28: 18
B29: 19
B30: 20

Sheet Ranking
B2: Project | C2: Name | D2: Efficiency | E2: ='Input Data'!D9 -> Metric 1 | F2: ='Input Data'!E9 -> Metric 2 | G2: ='Input Data'!F9 -> Metric 3 | H2: ='Input Data'!G9 -> Metric 4 | I2: ='Input Data'!H9 -> Metric 5 | J2: ='Input Data'!I9 -> Metric 6 | K2: ='Input Data'!J9 -> Metric 7 | L2: ='Input Data'!K9 -> Metric 8 | M2: ='Input Data'!L9 -> Metric 9 | N2: ='Input Data'!M9 -> Metric 10
B3: 5
B4: 6
B5: 3
B6: 4
B7: 2
B8: 1
B9: 7
B10: 8
B11: 9
B12: 10
B13: 11
B14: 12
B15: 13
B16: 14
B17: 15
B18: 16
B19: 17
B20: 18
B21: 19
B22: 20

Sheet Example Input Data
A1: Unused | B1: Project Evaluation Toolkit - Multiobjective Project Ranking | K1: Legend
A2: Benefit | K2: User Inputs
A3: Cost | B3: Steps: | K3: Key Outputs
B4: 1. Enter evaluation categories along top row, indicating which metrics are "benefits" and which are "costs" from the drop-down menu
B5: 2. Enter data for each project
B6: 3. Click "Rank projects" button
B7: 4. Upon completion of project ranking, you will be moved to the Ranking sheet.
B9: Project | C9: Name | D9: Cost | E9: VHT | F9: Emissions | G9: Crashes | H9: Equity | I9: Revenue | J9: Metric 7 | K9: Metric 8 | L9: Metric 9 | M9: Metric 10
D10: 3 | E10: 3 | F10: 3 | G10: 3 | H10: 2 | I10: 2 | J10: 1 | K10: 1 | L10: 1 | M10: 1
B11: 1 | C11: Alternative A | D11: 740 | E11: 91 | F11: 13 | G11: 5 | H11: 8 | I11: 103
B12: 2 | C12: Alternative B | D12: 620 | E12: 79 | F12: 21 | G12: 9 | H12: 5 | I12: 85
B13: 3 | C13: Alternative C | D13: 319 | E13: 82 | F13: 47 | G13: 3 | H13: 2 | I13: 95
B14: 4 | C14: Alternative D | D14: 440 | E14: 61 | F14: 11 | G14: 7 | H14: 10 | I14: 110
B15: 5 | C15: Do Nothing | D15: 519 | E15: 13 | F15: 55 | G15: 10 | H15: 6 | I15: 20
B16: 6
B17: 7
B18: 8
B19: 9
B20: 10
B21: 11
B22: 12
B23: 13
B24: 14
B25: 15
B26: 16
B27: 17
B28: 18
B29: 19
B30: 20

Sheet Example Ranking
B2: Project | C2: Name | D2: Efficiency | E2: Cost | F2: VHT | G2: Emissions | H2: Crashes | I2: Equity | J2: Revenue | K2: Metric 7 | L2: Metric 8 | M2: Metric 9 | N2: Metric 10
B3: 5 | C3: Do Nothing | D3: 2.815378777 | E3: 519 | F3: 13 | G3: 55 | H3: 10 | I3: 6 | J3: 20
B4: 4 | C4: Alternative D | D4: 2.090084582 | E4: 440 | F4: 61 | G4: 11 | H4: 7 | I4: 10 | J4: 110
B5: 3 | C5: Alternative C | D5: 1.739061215 | E5: 319 | F5: 82 | G5: 47 | H5: 3 | I5: 2 | J5: 95
B6: 1 | C6: Alternative A | D6: 1.22049441 | E6: 740 | F6: 91 | G6: 13 | H6: 5 | I6: 8 | J6: 103
B7: 2 | C7: Alternative B | D7: 0.5989368035 | E7: 620 | F7: 79 | G7: 21 | H7: 9 | I7: 5 | J7: 85
B8: 6
B9: 7
B10: 8
B11: 9
B12: 10
B13: 11
B14: 12
B15: 13
B16: 14
B17: 15
B18: 16
B19: 17
B20: 18
B21: 19
B22: 20

Sheet DEA Calculations
A1: ='Input Data'!B9 -> Project | B1: ='Input Data'!C9 -> Name | C1: ='Input Data'!D9 -> Metric 1 | D1: ='Input Data'!E9 -> Metric 2 | E1: ='Input Data'!F9 -> Metric 3 | F1: ='Input Data'!G9 -> Metric 4 | G1: ='Input Data'!H9 -> Metric 5 | H1: ='Input Data'!I9 -> Metric 6 | I1: ='Input Data'!J9 -> Metric 7 | J1: ='Input Data'!K9 -> Metric 8 | K1: ='Input Data'!L9 -> Metric 9 | L1: ='Input Data'!M9 -> Metric 10 | M1: Efficiency | N1: z (1) | O1: z (2) | P1: z (3) | Q1: z (4) | R1: z (5) | S1: z (6) | T1: z (7) | U1: z (8) | V1: z (9) | W1: z (10) | X1: z (11) | Y1: z (12) | Z1: z (13) | AA1: z (14) | AB1: z (15) | AC1: z (16) | AD1: z (17) | AE1: z (18) | AF1: z (19) | AG1: z (20) | AH1: OBJECTIVE | AI1: In/Out 1 | AJ1: In/Out 2 | AK1: In/Out 3 | AL1: In/Out 4 | AM1: In/Out 5 | AN1: In/Out 6 | AO1: In/Out 7 | AP1: In/Out 8 | AQ1: In/Out 9 | AR1: In/Out 10 | AS1: delta | AT1: =0.001/(MAX(MAX(C2:L21),-MIN(C2:L21))) -> 5.882352941e-07
A2: 1 | B2: Bike Trail | C2: 500 | D2: 10 | E2: 150 | F2: 500 | G2: 40 | M2: 0.625 | N2: 0 | O2: 0 | P2: 0 | Q2: 0 | R2: 4 | S2: 0 | AH2: =M2+delta*SUM(C24:L24) -> 0.6250720588 | AI2: =IF(C$22="Input",$M2*C2-SUMPRODUCT(C$2:C$21,$N$2:$N$21)+$N2*C2-C24,IF(C$22="Output",C2-SUMPRODUCT(C$2:C$21,$N$2:$N$21)+$N2*C2+C24,0)) -> -5.684341886e-14 | AJ2: =IF(D$22="Input",$M2*D2-SUMPRODUCT(D$2:D$21,$N$2:$N$21)+$N2*D2-D24,IF(D$22="Output",D2-SUMPRODUCT(D$2:D$21,$N$2:$N$21)+$N2*D2+D24,0)) -> 0 | AK2: 0 | AL2: -1.776356839e-15 | AM2: -7.105427358e-15 | AN2: 0 | AO2: 0 | AP2: 0 | AQ2: 0 | AR2: 0
A3: 2 | B3: Sidewalks | C3: 450 | D3: 10 | E3: 200 | F3: 700 | G3: 50 | M3: 0.6666666667 | N3: 0 | O3: 0 | P3: 0 | Q3: 0 | R3: 0 | S3: 0 | AH3: =M3-delta*SUM(C25:L25) -> 0.6664117647 | AI3: =IF(C$22="Input",$M3*C3-SUMPRODUCT(C$2:C$21,$O$2:$O$21)+$O3*C3-C25,IF(C$22="Output",C3-SUMPRODUCT(C$2:C$21,$O$2:$O$21)+$O3*C3+C25,0)) -> -1.705302566e-13 | AJ3: =IF(D$22="Input",$M3*D3-SUMPRODUCT(D$2:D$21,$O$2:$O$21)+$O3*D3-D25,IF(D$22="Output",D3-SUMPRODUCT(D$2:D$21,$O$2:$O$21)+$O3*D3+D25,0)) -> -3.552713679e-15 | AK3: -2.842170943e-14 | AL3: -1.705302566e-13 | AM3: -7.105427358e-15 | AN3: 0 | AO3: 0 | AP3: 0 | AQ3: 0 | AR3: 0
A4: 3 | B4: Corridor Reconstr 1 | C4: 1500 | D4: 0 | E4: 0 | F4: 1000 | G4: 150 | M4: 0.75 | N4: 0 | O4: 0 | P4: 0 | Q4: 0 | R4: 0 | S4: 0 | AH4: 0.7499826797 | AI4: =IF(C$22="Input",$M4*C4-SUMPRODUCT(C$2:C$21,$P$2:$P$21)+$P4*C4-C26,IF(C$22="Output",C4-SUMPRODUCT(C$2:C$21,$P$2:$P$21)+$P4*C4+C26,0)) -> -4.547473509e-13 | AJ4: =IF(D$22="Input",$M4*D4-SUMPRODUCT(D$2:D$21,$P$2:$P$21)+$P4*D4-D26,IF(D$22="Output",D4-SUMPRODUCT(D$2:D$21,$P$2:$P$21)+$P4*D4+D26,0)) -> -3.552713679e-15 | AK4: 0 | AL4: -1.136868377e-13 | AM4: -5.995204333e-15 | AN4: 0 | AO4: 0 | AP4: 0 | AQ4: 0 | AR4: 0
A5: 4 | B5: Corridor Reconstr 2 | C5: 1700 | D5: -10 | E5: 100 | F5: 1200 | G5: 200 | M5: 0.7083333333 | N5: 0 | O5: 0 | P5: 0 | Q5: 0 | R5: 0 | S5: 0 | AH5: 0.7082884205 | AI5: =IF(C$22="Input",$M5*C5-SUMPRODUCT(C$2:C$21,$Q$2:$Q$21)+$Q5*C5-C27,IF(C$22="Output",C5-SUMPRODUCT(C$2:C$21,$Q$2:$Q$21)+$Q5*C5+C27,0)) -> 4.547473509e-13 | AJ5: =IF(D$22="Input",$M5*D5-SUMPRODUCT(D$2:D$21,$Q$2:$Q$21)+$Q5*D5-D27,IF(D$22="Output",D5-SUMPRODUCT(D$2:D$21,$Q$2:$Q$21)+$Q5*D5+D27,0)) -> 7.105427358e-15 | AK5: -2.842170943e-14 | AL5: 0 | AM5: -2.131628207e-14 | AN5: 0 | AO5: 0 | AP5: 0 | AQ5: 0 | AR5: 0
A6: 5 | B6: Int. Roundabout | C6: 1200 | D6: 40 | E6: 300 | F6: 600 | G6: 50 | M6: 3.333333333 | N6: 0.5 | O6: 0.6666666667 | P6: 0.5555555556 | Q6: 0.8148148148 | R6: 0 | S6: 0.8333333333 | AH6: 3.332682353 | AI6: =IF(C$22="Input",$M6*C6-SUMPRODUCT(C$2:C$21,$R$2:$R$21)+$R6*C6-C28,IF(C$22="Output",C6-SUMPRODUCT(C$2:C$21,$R$2:$R$21)+$R6*C6+C28,0)) -> 3.410605132e-13 | AJ6: =IF(D$22="Input",$M6*D6-SUMPRODUCT(D$2:D$21,$R$2:$R$21)+$R6*D6-D28,IF(D$22="Output",D6-SUMPRODUCT(D$2:D$21,$R$2:$R$21)+$R6*D6+D28,0)) -> 7.105427358e-15 | AK6: 5.684341886e-14 | AL6: 4.547473509e-13 | AM6: 3.552713679e-14 | AN6: 0 | AO6: 0 | AP6: 0 | AQ6: 0 | AR6: 0
A7: 6 | B7: Int. Signal | C7: 1000 | D7: 7 | E7: -200 | F7: 500 | G7: 100 | M7: 1 | N7: 0 | O7: 0 | P7: 0.8333333333 | Q7: 0.7222222222 | R7: 0 | S7: 0 | AH7: 0.9996854902 | AI7: =IF(C$22="Input",$M7*C7-SUMPRODUCT(C$2:C$21,$S$2:$S$21)+$S7*C7-C29,IF(C$22="Output",C7-SUMPRODUCT(C$2:C$21,$S$2:$S$21)+$S7*C7+C29,0)) -> 1.136868377e-13 | AJ7: =IF(D$22="Input",$M7*D7-SUMPRODUCT(D$2:D$21,$S$2:$S$21)+$S7*D7-D29,IF(D$22="Output",D7-SUMPRODUCT(D$2:D$21,$S$2:$S$21)+$S7*D7+D29,0)) -> 7.105427358e-15 | AK7: 0 | AL7: 0 | AM7: -7.105427358e-15 | AN7: 0 | AO7: 0 | AP7: 0 | AQ7: 0 | AR7: 0
A8: 7 | N8: 0 | O8: 0 | P8: 0 | Q8: 0 | R8: 0 | S8: 0 | AH8: 0 | AI8: =IF(C$22="Input",$M8*C8-SUMPRODUCT(C$2:C$21,$T$2:$T$21)+$T8*C8-C30,IF(C$22="Output",C8-SUMPRODUCT(C$2:C$21,$T$2:$T$21)+$T8*C8+C30,0)) -> 0 | AJ8: =IF(D$22="Input",$M8*D8-SUMPRODUCT(D$2:D$21,$T$2:$T$21)+$T8*D8-D30,IF(D$22="Output",D8-SUMPRODUCT(D$2:D$21,$T$2:$T$21)+$T8*D8+D30,0)) -> 0 | AK8: 0 | AL8: 0 | AM8: 0 | AN8: 0 | AO8: 0 | AP8: 0 | AQ8: 0 | AR8: 0
A9: 8 | N9: 0 | O9: 0 | P9: 0 | Q9: 0 | R9: 0 | S9: 0 | AH9: 0 | AI9: =IF(C$22="Input",$M9*C9-SUMPRODUCT(C$2:C$21,$U$2:$U$21)+$U9*C9-C31,IF(C$22="Output",C9-SUMPRODUCT(C$2:C$21,$U$2:$U$21)+$U9*C9+C31,0)) -> 0 | AJ9: =IF(D$22="Input",$M9*D9-SUMPRODUCT(D$2:D$21,$U$2:$U$21)+$U9*D9-D31,IF(D$22="Output",D9-SUMPRODUCT(D$2:D$21,$U$2:$U$21)+$U9*D9+D31,0)) -> 0 | AK9: 0 | AL9: 0 | AM9: 0 | AN9: 0 | AO9: 0 | AP9: 0 | AQ9: 0 | AR9: 0
A10: 9 | N10: 0 | O10: 0 | P10: 0 | Q10: 0 | R10: 0 | S10: 0 | AH10: 0 | AI10: =IF(C$22="Input",$M10*C10-SUMPRODUCT(C$2:C$21,$V$2:$V$21)+$V10*C10-C32,IF(C$22="Output",C10-SUMPRODUCT(C$2:C$21,$V$2:$V$21)+$V10*C10+C32,0)) -> 0 | AJ10: =IF(D$22="Input",$M10*D10-SUMPRODUCT(D$2:D$21,$V$2:$V$21)+$V10*D10-D32,IF(D$22="Output",D10-SUMPRODUCT(D$2:D$21,$V$2:$V$21)+$V10*D10+D32,0)) -> 0 | AK10: 0 | AL10: 0 | AM10: 0 | AN10: 0 | AO10: 0 | AP10: 0 | AQ10: 0 | AR10: 0
A11: 10 | N11: 0 | O11: 0 | P11: 0 | Q11: 0 | R11: 0 | S11: 0 | AH11: 0 | AI11: =IF(C$22="Input",$M11*C11-SUMPRODUCT(C$2:C$21,$W$2:$W$21)+$W11*C11-C33,IF(C$22="Output",C11-SUMPRODUCT(C$2:C$21,$W$2:$W$21)+$W11*C11+C33,0)) -> 0 | AJ11: =IF(D$22="Input",$M11*D11-SUMPRODUCT(D$2:D$21,$W$2:$W$21)+$W11*D11-D33,IF(D$22="Output",D11-SUMPRODUCT(D$2:D$21,$W$2:$W$21)+$W11*D11+D33,0)) -> 0 | AK11: 0 | AL11: 0 | AM11: 0 | AN11: 0 | AO11: 0 | AP11: 0 | AQ11: 0 | AR11: 0
A12: 11 | N12: 0 | O12: 0 | P12: 0 | Q12: 0 | R12: 0 | S12: 0 | AH12: 0 | AI12: =IF(C$22="Input",$M12*C12-SUMPRODUCT(C$2:C$21,$X$2:$X$21)+$X12*C12-C34,IF(C$22="Output",C12-SUMPRODUCT(C$2:C$21,$X$2:$X$21)+$X12*C12+C34,0)) -> 0 | AJ12: =IF(D$22="Input",$M12*D12-SUMPRODUCT(D$2:D$21,$X$2:$X$21)+$X12*D12-D34,IF(D$22="Output",D12-SUMPRODUCT(D$2:D$21,$X$2:$X$21)+$X12*D12+D34,0)) -> 0 | AK12: 0 | AL12: 0 | AM12: 0 | AN12: 0 | AO12: 0 | AP12: 0 | AQ12: 0 | AR12: 0
A13: 12 | N13: 0 | O13: 0 | P13: 0 | Q13: 0 | R13: 0 | S13: 0 | AH13: 0 | AI13: =IF(C$22="Input",$M13*C13-SUMPRODUCT(C$2:C$21,$Y$2:$Y$21)+$Y13*C13-C35,IF(C$22="Output",C13-SUMPRODUCT(C$2:C$21,$Y$2:$Y$21)+$Y13*C13+C35,0)) -> 0 | AJ13: =IF(D$22="Input",$M13*D13-SUMPRODUCT(D$2:D$21,$Y$2:$Y$21)+$Y13*D13-D35,IF(D$22="Output",D13-SUMPRODUCT(D$2:D$21,$Y$2:$Y$21)+$Y13*D13+D35,0)) -> 0 | AK13: 0 | AL13: 0 | AM13: 0 | AN13: 0 | AO13: 0 | AP13: 0 | AQ13: 0 | AR13: 0
A14: 13 | N14: 0 | O14: 0 | P14: 0 | Q14: 0 | R14: 0 | S14: 0 | AH14: 0 | AI14: =IF(C$22="Input",$M14*C14-SUMPRODUCT(C$2:C$21,$Z$2:$Z$21)+$Z14*C14-C36,IF(C$22="Output",C14-SUMPRODUCT(C$2:C$21,$Z$2:$Z$21)+$Z14*C14+C36,0)) -> 0 | AJ14: =IF(D$22="Input",$M14*D14-SUMPRODUCT(D$2:D$21,$Z$2:$Z$21)+$Z14*D14-D36,IF(D$22="Output",D14-SUMPRODUCT(D$2:D$21,$Z$2:$Z$21)+$Z14*D14+D36,0)) -> 0 | AK14: 0 | AL14: 0 | AM14: 0 | AN14: 0 | AO14: 0 | AP14: 0 | AQ14: 0 | AR14: 0
A15: 14 | N15: 0 | O15: 0 | P15: 0 | Q15: 0 | R15: 0 | S15: 0 | AH15: 0 | AI15: =IF(C$22="Input",$M15*C15-SUMPRODUCT(C$2:C$21,$AA$2:$AA$21)+$AA15*C15-C37,IF(C$22="Output",C15-SUMPRODUCT(C$2:C$21,$AA$2:$AA$21)+$AA15*C15+C37,0)) -> 0 | AJ15: =IF(D$22="Input",$M15*D15-SUMPRODUCT(D$2:D$21,$AA$2:$AA$21)+$AA15*D15-D37,IF(D$22="Output",D15-SUMPRODUCT(D$2:D$21,$AA$2:$AA$21)+$AA15*D15+D37,0)) -> 0 | AK15: 0 | AL15: 0 | AM15: 0 | AN15: 0 | AO15: 0 | AP15: 0 | AQ15: 0 | AR15: 0
A16: 15 | N16: 0 | O16: 0 | P16: 0 | Q16: 0 | R16: 0 | S16: 0 | AH16: 0 | AI16: =IF(C$22="Input",$M16*C16-SUMPRODUCT(C$2:C$21,$AB$2:$AB$21)+$AB16*C16-C38,IF(C$22="Output",C16-SUMPRODUCT(C$2:C$21,$AB$2:$AB$21)+$AB16*C16+C38,0)) -> 0 | AJ16: =IF(D$22="Input",$M16*D16-SUMPRODUCT(D$2:D$21,$AB$2:$AB$21)+$AB16*D16-D38,IF(D$22="Output",D16-SUMPRODUCT(D$2:D$21,$AB$2:$AB$21)+$AB16*D16+D38,0)) -> 0 | AK16: 0 | AL16: 0 | AM16: 0 | AN16: 0 | AO16: 0 | AP16: 0 | AQ16: 0 | AR16: 0
A17: 16 | N17: 0 | O17: 0 | P17: 0 | Q17: 0 | R17: 0 | S17: 0 | AH17: 0 | AI17: =IF(C$22="Input",$M17*C17-SUMPRODUCT(C$2:C$21,$AC$2:$AC$21)+$AC17*C17-C39,IF(C$22="Output",C17-SUMPRODUCT(C$2:C$21,$AC$2:$AC$21)+$AC17*C17+C39,0)) -> 0 | AJ17: =IF(D$22="Input",$M17*D17-SUMPRODUCT(D$2:D$21,$AC$2:$AC$21)+$AC17*D17-D39,IF(D$22="Output",D17-SUMPRODUCT(D$2:D$21,$AC$2:$AC$21)+$AC17*D17+D39,0)) -> 0 | AK17: 0 | AL17: 0 | AM17: 0 | AN17: 0 | AO17: 0 | AP17: 0 | AQ17: 0 | AR17: 0
A18: 17 | N18: 0 | O18: 0 | P18: 0 | Q18: 0 | R18: 0 | S18: 0 | AH18: 0 | AI18: =IF(C$22="Input",$M18*C18-SUMPRODUCT(C$2:C$21,$AD$2:$AD$21)+$AD18*C18-C40,IF(C$22="Output",C18-SUMPRODUCT(C$2:C$21,$AD$2:$AD$21)+$AD18*C18+C40,0)) -> 0 | AJ18: =IF(D$22="Input",$M18*D18-SUMPRODUCT(D$2:D$21,$AD$2:$AD$21)+$AD18*D18-D40,IF(D$22="Output",D18-SUMPRODUCT(D$2:D$21,$AD$2:$AD$21)+$AD18*D18+D40,0)) -> 0 | AK18: 0 | AL18: 0 | AM18: 0 | AN18: 0 | AO18: 0 | AP18: 0 | AQ18: 0 | AR18: 0
A19: 18 | N19: 0 | O19: 0 | P19: 0 | Q19: 0 | R19: 0 | S19: 0 | AH19: 0 | AI19: =IF(C$22="Input",$M19*C19-SUMPRODUCT(C$2:C$21,$AE$2:$AE$21)+$AE19*C19-C41,IF(C$22="Output",C19-SUMPRODUCT(C$2:C$21,$AE$2:$AE$21)+$AE19*C19+C41,0)) -> 0 | AJ19: =IF(D$22="Input",$M19*D19-SUMPRODUCT(D$2:D$21,$AE$2:$AE$21)+$AE19*D19-D41,IF(D$22="Output",D19-SUMPRODUCT(D$2:D$21,$AE$2:$AE$21)+$AE19*D19+D41,0)) -> 0 | AK19: 0 | AL19: 0 | AM19: 0 | AN19: 0 | AO19: 0 | AP19: 0 | AQ19: 0 | AR19: 0
A20: 19 | N20: 0 | O20: 0 | P20: 0 | Q20: 0 | R20: 0 | S20: 0 | AH20: 0 | AI20: =IF(C$22="Input",$M20*C20-SUMPRODUCT(C$2:C$21,$AF$2:$AF$21)+$AF20*C20-C42,IF(C$22="Output",C20-SUMPRODUCT(C$2:C$21,$AF$2:$AF$21)+$AF20*C20+C42,0)) -> 0 | AJ20: =IF(D$22="Input",$M20*D20-SUMPRODUCT(D$2:D$21,$AF$2:$AF$21)+$AF20*D20-D42,IF(D$22="Output",D20-SUMPRODUCT(D$2:D$21,$AF$2:$AF$21)+$AF20*D20+D42,0)) -> 0 | AK20: 0 | AL20: 0 | AM20: 0 | AN20: 0 | AO20: 0 | AP20: 0 | AQ20: 0 | AR20: 0
A21: 20 | N21: 0 | O21: 0 | P21: 0 | Q21: 0 | R21: 0 | S21: 0 | AH21: 0 | AI21: =IF(C$22="Input",$M21*C21-SUMPRODUCT(C$2:C$21,$AG$2:$AG$21)+$AG21*C21-C43,IF(C$22="Output",C21-SUMPRODUCT(C$2:C$21,$AG$2:$AG$21)+$AG21*C21+C43,0)) -> 0 | AJ21: =IF(D$22="Input",$M21*D21-SUMPRODUCT(D$2:D$21,$AG$2:$AG$21)+$AG21*D21-D43,IF(D$22="Output",D21-SUMPRODUCT(D$2:D$21,$AG$2:$AG$21)+$AG21*D21+D43,0)) -> 0 | AK21: 0 | AL21: 0 | AM21: 0 | AN21: 0 | AO21: 0 | AP21: 0 | AQ21: 0 | AR21: 0
C22: Output | D22: Output | E22: Output | F22: Input | G22: Input | H22: Output
C23: slack | D23: slack | E23: slack | F23: slack | G23: slack | H23: slack | I23: slack | J23: slack | K23: slack | L23: slack
A24: =A2 -> 1 | B24: =B2 -> Bike Trail | C24: 100 | D24: 10 | E24: 0 | F24: 12.5 | G24: 0 | H24: 0 | I24: 0 | J24: 0 | K24: 0 | L24: 0
A25: =A3 -> 2 | B25: Sidewalks | C25: 350 | D25: 16.66666667 | E25: 0 | F25: 66.66666667 | G25: 0 | H25: 0 | I25: 0 | J25: 0 | K25: 0 | L25: 0
A26: =A4 -> 3 | B26: =B4 -> Corridor Reconstr 1 | C26: 0 | D26: 28.05555556 | E26: 0 | F26: 0 | G26: 1.388888889 | H26: 0 | I26: 0 | J26: 0 | K26: 0 | L26: 0
A27: =A5 -> 4 | B27: Corridor Reconstr 2 | C27: 0 | D27: 47.64814815 | E27: 0 | F27: 0 | G27: 28.7037037 | H27: 0 | I27: 0 | J27: 0 | K27: 0 | L27: 0
A28: =A6 -> 5 | B28: Int. Roundabout | C28: 800 | D28: 0 | E28: 300 | F28: 0 | G28: 6.666666667 | H28: 0 | I28: 0 | J28: 0 | K28: 0 | L28: 0
A29: =A7 -> 6 | B29: Int. Signal | C29: 0 | D29: 26.33333333 | E29: 450 | F29: 0 | G29: 58.33333333 | H29: 0 | I29: 0 | J29: 0 | K29: 0 | L29: 0
A30: =A8 -> 7 | B30: 0
A31: =A9 -> 8 | B31: 0
A32: =A10 -> 9 | B32: 0
A33: =A11 -> 10 | B33: 0
A34: =A12 -> 11 | B34: 0
A35: =A13 -> 12 | B35: 0
A36: =A14 -> 13 | B36: 0
A37: =A15 -> 14 | B37: 0
A38: =A16 -> 15 | B38: 0
A39: =A17 -> 16 | B39: 0
A40: =A18 -> 17 | B40: 0
A41: =A19 -> 18 | B41: 0
A42: =A20 -> 19 | B42: 0
A43: =A21 -> 20 | B43: 0
C44: 9e+99 | D44: 9e+99 | E44: 9e+99 | F44: 9e+99 | G44: 9e+99 | H44: 0 | I44: 0 | J44: 0 | K44: 0 | L44: 0

Sheet Sheet1
